fUST/lending_fUST_20250827
["ID","MTS","AMOUNT","RATE_DAILY","PERIOD"]
[381555234,1756281714259,-500.0,0.0002452,2]
[381555235,1756281714286,-2351.8648088,0.0002452,2]
[381555322,1756281768350,3043.98733739,0.000199,2]
[381555323,1756281768426,3043.98733719,0.00021627,2]
[381555401,1756281824898,175.964771,0.0002376,120]
[381555614,1756281954341,2848.43224685,0.000199,2]
[381555615,1756281954496,2848.43224662,0.00021627,2]
[381555665,1756281978970,1000.0,0.00023102,2]
[381555810,1756282070747,183.75011066,0.00022708,2]
[381555822,1756282083180,150.16,0.00016424,10]
[381555925,1756282146168,2665.44174317,0.000199,2]
[381555926,1756282146331,2665.44174305,0.00021627,2]
[381555942,1756282192488,10000.01,0.00023076,2]
[381555943,1756282192533,10000.01,0.00023076,2]
[381555944,1756282192587,6089.3299652,0.00023076,2]
[381556086,1756282232869,-1106.8,0.00023353,2]
[381556088,1756282232882,-1558.64174305,0.00023353,2]
[381556090,1756282232892,-1200.0,0.00023408,2]
[381556092,1756282232902,-1200.0,0.00023409,2]
[381556094,1756282232911,-300.0,0.00023409,2]
[381556096,1756282232921,-300.0,0.00023409,2]
[381556098,1756282232931,-500.0,0.0002341,2]
[381556100,1756282232940,-500.0,0.0002341,2]
[381556102,1756282232949,-427.7961626,0.0002341,2]
[381556105,1756282232959,-10000.0,0.00023411,2]
[381556107,1756282232968,-666.0,0.00023501,2]
[381556109,1756282232978,-175.964771,0.0002376,2]
[381556110,1756282232987,-723.3684478,0.00024048,2]
[381556113,1756282232996,-189.69645233,0.00024335,2]
[381556115,1756282233006,-800.0,0.00024368,2]
[381556116,1756282233015,-155.39499642,0.00024448,2]
[381556118,1756282233026,-160.0,0.00024517,2]
[381556120,1756282233036,-184.34520589,0.00024519,2]
[381556123,1756282233046,-500.0,0.00024519,2]
[381556125,1756282233056,-615.0,0.00024519,2]
[381556127,1756282233066,-280.5,0.00024519,2]
[381556129,1756282233076,-19514.49078385,0.0002452,2]
[381556532,1756282237347,10959.62,0.00031455,120]
[381556584,1756282237810,-1443.03749121,0.0002452,2]
[381556599,1756282237929,-47765.1274662,0.0002452,2]
[381556601,1756282237940,-211.41151726,0.00024558,2]
[381556603,1756282237950,-380.0,0.00024658,2]
[381556605,1756282237960,-1807.06,0.0002469,10]
[381556607,1756282237970,-350.41,0.000247,2]
[381556609,1756282237980,-938.02307506,0.000247,2]
[381556611,1756282237990,-17378.7565037,0.00024725,2]
[381556613,1756282238000,-3027.6061367,0.00024725,2]
[381556615,1756282238009,-210.93609623,0.00024742,2]
[381556617,1756282238019,-579.23238633,0.00024773,2]
[381556619,1756282238028,-500.64224986,0.00024773,2]
[381556621,1756282238037,-500.0,0.00024773,2]
[381556622,1756282238047,-349.0,0.00024773,2]
[381556624,1756282238057,-500.0,0.00024773,2]
[381556626,1756282238066,-517.98037952,0.00024773,2]
[381556628,1756282238075,-500.0,0.00024773,2]
[381556630,1756282238084,-500.0,0.00024773,2]
[381556632,1756282238094,-500.0,0.00024773,2]
[381556634,1756282238103,-500.0,0.00024773,2]
[381556636,1756282238114,-500.0,0.00024773,2]
[381556638,1756282238123,-500.0,0.00024773,2]
[381556640,1756282238133,-500.0,0.00024773,2]
[381556642,1756282238142,-433.05,0.00024788,3]
[381556644,1756282238151,-216.52,0.00024788,3]
[381556647,1756282238163,-150.0,0.00024797,2]
[381556649,1756282238173,-57986.94792433,0.00024798,2]
[381556827,1756282240320,-2433.32990086,0.00024798,2]
[381557076,1756282246121,-187.03952512,0.00024625,2]
[381557079,1756282246132,-5810.15785841,0.00024798,2]
[381557081,1756282246142,-173102.74396576,0.000248,2]
[381557580,1756282382946,2678.18426763,0.000199,2]
[381557582,1756282383114,2678.18426735,0.00021627,2]
[381557583,1756282383943,160.68708454,0.00023196,5]
[381557585,1756282386372,-2678.18426735,0.00023353,2]
[381557586,1756282386625,-3755.861759,0.00023662,2]
[381557588,1756282386970,-2488.286482,0.00023662,2]
[381557589,1756282387008,-160.68708453,0.00023917,5]
[381557590,1756282387047,-158.21657506,0.00023989,2]
[381557591,1756282387085,-300.0,0.00023989,2]
[381557593,1756282388022,-861.55931447,0.0002399,2]
[381557595,1756282388196,-10000.01,0.0002399,2]
[381557597,1756282388448,-10000.01,0.0002399,2]
[381557598,1756282388694,-10000.01,0.0002399,2]
[381557671,1756282456151,1344.979649,0.00023177,2]
[381557674,1756282457960,10000.0,0.00023353,2]
[381557707,1756282486042,6419.38,0.00023353,2]
[381557746,1756282520785,10000.0,0.00023353,2]
[381557782,1756282551405,741.5049777,0.00022985,2]
[381557794,1756282562061,2423.73226477,0.000199,2]
[381557795,1756282562198,2423.73226468,0.00021627,2]
[381557807,1756282569747,772.57763,0.00013699,2]
[381557809,1756282569925,772.57763,0.00020187,2]
[381557820,1756282579904,5000.0,0.00023353,2]
[381557835,1756282595338,5000.0,0.00023353,2]
[381557859,1756282611345,364.29330539,0.00023353,2]
[381557914,1756282651819,-2423.73226468,0.00023353,2]
[381557915,1756282651856,-1271.5606878,0.00023542,2]
[381557916,1756282651892,-511.908714,0.00023763,2]
[381557917,1756282652865,-2834.3570878,0.00023947,2]
[381557918,1756282652898,-500.0,0.00023973,2]
[381557919,1756282652931,-500.0,0.00023973,2]
[381557920,1756282652968,-378.89718287,0.0002398,5]
[381557921,1756282653005,-373.50145866,0.00023988,2]
[381557922,1756282653096,-826.49854134,0.00023988,2]
[381557923,1756282653132,-300.0,0.00023988,2]
[381557924,1756282653167,-1200.0,0.00023988,2]
[381557925,1756282653203,-272.5337327,0.00023989,2]
[381557926,1756282653304,-500.0,0.00023989,2]
[381557927,1756282653395,-500.0,0.00023989,2]
[381557928,1756282653493,-225.51293165,0.00023989,2]
[381557929,1756282653608,-500.0,0.00023989,2]
[381557930,1756282653702,-500.0,0.00023989,2]
[381557931,1756282653861,-500.0,0.00023989,2]
[381557932,1756282653956,-500.0,0.00023989,2]
[381557933,1756282654069,-500.0,0.00023989,2]
[381557934,1756282654167,-500.0,0.00023989,2]
[381557935,1756282654276,-500.0,0.00023989,2]
[381557936,1756282654370,-500.0,0.00023989,2]
[381557938,1756282654460,-500.0,0.00023989,2]
[381557939,1756282654555,-500.0,0.00023989,2]
[381557940,1756282654655,-500.0,0.00023989,2]
[381557941,1756282654756,-500.0,0.00023989,2]
[381557944,1756282654995,-500.0,0.00023989,2]
[381557945,1756282655088,-500.0,0.00023989,2]
[381557947,1756282655179,-500.0,0.00023989,2]
[381557949,1756282655283,-532.35771565,0.00023989,2]
[381557955,1756282660531,-3435.59164416,0.00023989,2]
[381557957,1756282660755,-10000.01,0.00023989,2]
[381558011,1756282728583,-4468.09422618,0.00023989,2]
[381558012,1756282728670,-1063.82154764,0.00023989,2]
[381558013,1756282728960,-10000.01,0.0002399,2]
[381558014,1756282729267,-10000.01,0.0002399,2]
[381558015,1756282729569,-10000.01,0.0002399,2]
[381558016,1756282729890,-10000.01,0.0002399,2]
[381558017,1756282730200,-10000.01,0.0002399,2]
[381558018,1756282730538,-10000.01,0.0002399,2]
[381558019,1756282730956,-861.65931447,0.0002399,2]
[381558020,1756282731042,-8276.69137106,0.0002399,2]
[381558022,1756282731479,-1000.0,0.00024521,2]
[381558023,1756282731726,-8000.01,0.00024646,2]
[381558024,1756282731860,-2082.3837084,0.00024646,2]
[381558025,1756282731950,-5835.2425832,0.00024646,2]
[381558031,1756282736314,-500.0,0.00024673,2]
[381558032,1756282736395,-500.0,0.00024673,2]
[381558033,1756282736479,-516.37744465,0.00024673,2]
[381558034,1756282736569,-170.9158751,0.00024681,2]
[381558035,1756282736665,-2122.5,0.0002469,10]
[381558036,1756282736760,-750.41846004,0.000247,2]
[381558037,1756282737416,-879.58644042,0.000247,2]
[381558038,1756282737627,-320.89647222,0.000247,2]
[381558040,1756282737762,-9358.21705556,0.000247,2]
[381558041,1756282737772,-320.89647222,0.000247,2]
[381558042,1756282737904,-9679.11352778,0.000247,2]
[381558043,1756282738132,-10000.01,0.000247,2]
[381558044,1756282738372,-10000.01,0.000247,2]
[381558045,1756282738497,-10000.01,0.000247,2]
[381558046,1756282738622,-10000.01,0.000247,2]
[381558047,1756282738955,-10000.01,0.000247,2]
[381558048,1756282739299,-10000.01,0.000247,2]
[381558050,1756282739815,-10000.01,0.000247,2]
[381558058,1756282745489,2194.72546249,0.000199,2]
[381558059,1756282745677,2194.72546227,0.00021627,2]
[381558083,1756282776325,5000.0,0.00023353,2]
[381558098,1756282791792,5000.0,0.00023,2]
[381558114,1756282807327,5000.0,0.00023,2]
[381558141,1756282838195,5000.0,0.00023,2]
[381558142,1756282840505,907.54807736,0.00022885,10]
[381558157,1756282853643,2049.6509298,0.00023,2]
[381558167,1756282865235,3687.11212641,0.00020507,2]
[381558184,1756282884096,151.27311453,0.00022954,2]
[381558194,1756282895708,2076.8027709,0.00022692,2]
[381558195,1756282896043,608.47612186,0.000205,2]
[381558215,1756282927709,3099.10072523,0.000199,2]
[381558216,1756282927893,3099.10072497,0.00021627,2]
[381558230,1756282942405,-907.54807736,0.00023114,10]
[381558231,1756282942460,-561.15186588,0.00023343,10]
[381558232,1756282942518,-3099.10072497,0.00023353,2]
[381558233,1756282942573,-300.0,0.00023436,2]
[381558234,1756282942846,-1200.0,0.00023436,2]
[381558235,1756282943089,-0.01,0.00023437,2]
[381558237,1756282943310,-0.02,0.00023437,2]
[381558239,1756282943730,-0.04,0.00023437,2]
[381558241,1756282943827,-0.08,0.00023437,2]
[381558242,1756282943939,-2232.48832876,0.00023437,2]
[381558243,1756282944000,-7767.36167124,0.00023437,2]
[381558244,1756282944010,-666.0,0.00023527,2]
[381558245,1756282944021,-500.0,0.00023987,2]
[381558246,1756282944031,-500.0,0.00023987,2]
[381558247,1756282944040,-198.67991338,0.00023987,2]
[381558248,1756282944050,-367.88841538,0.00023987,2]
[381558249,1756282944115,-132.11158462,0.00023987,2]
[381558250,1756282944169,-154.45924833,0.00023987,2]
[381558251,1756282944225,-500.0,0.00023987,2]
[381558252,1756282944283,-500.0,0.00023987,2]
[381558253,1756282944336,-469.00324286,0.00023987,2]
[381558254,1756282944393,-468.11728671,0.00023987,2]
[381558255,1756282944448,-500.0,0.00023987,2]
[381558256,1756282944505,-500.0,0.00023987,2]
[381558257,1756282944560,-286.06417268,0.00023987,2]
[381558258,1756282944618,-163.52079205,0.00023987,2]
[381558259,1756282944672,-300.0,0.00023988,2]
[381558260,1756282944731,-853.4573455,0.00023988,2]
[381558261,1756282944878,-346.5426545,0.00023988,2]
[381558262,1756282944933,-160.0,0.00023988,2]
[381558266,1756282945938,-186.5426545,0.00023989,2]
[381558267,1756282945979,-160.0,0.00023989,2]
[381558268,1756282946022,-8986.924691,0.00023989,2]
[381558269,1756282946178,-10000.01,0.00023989,2]
[381558270,1756282946254,-10000.01,0.00023989,2]
[381558274,1756282952422,-175.81806678,0.00023427,2]
[381558275,1756282952474,-175.81806676,0.00023587,2]
[381558276,1756282952524,-175.81806676,0.00023747,2]
[381558277,1756282952573,-175.81806676,0.00023907,2]
[381558278,1756282952624,-1883.19540621,0.00023989,2]
[381558279,1756282952953,-4827.07465346,0.00023989,2]
[381558280,1756282953156,-2886.00845473,0.00024167,2]
[381558281,1756282953205,-246.64677013,0.00024267,2]
[381558282,1756282953286,-1694.4194286,0.00024367,2]
[381558283,1756282953338,-345.86069308,0.00024367,2]
[381558284,1756282953439,-4317.50916848,0.00024367,2]
[381558285,1756282953594,-1364.99166304,0.00024367,2]
[381558286,1756282953604,-1184.85394362,0.00024367,2]
[381558287,1756282953658,-5682.50083152,0.00024367,2]
[381558288,1756282953735,-10000.01,0.00024367,2]
[381558289,1756282953777,-1058.69396526,0.00024367,2]
[381558290,1756282953789,-246.64677011,0.00024434,2]
[381558291,1756282953799,-1035.2050521,0.000246,2]
[381558292,1756282953809,-246.64677011,0.000246,2]
[381558293,1756282953819,-500.0,0.00024673,2]
[381558294,1756282953830,-500.0,0.00024673,2]
[381558295,1756282953841,-500.0,0.00024673,2]
[381558296,1756282953851,-5912.81744242,0.00024673,2]
[381558297,1756282953922,-1126.3158697,0.00024673,2]
[381558298,1756282953977,-216.52,0.0002469,3]
[381558299,1756282954033,-649.58,0.0002469,3]
[381558300,1756282954091,-287.44,0.0002469,3]
[381558301,1756282954147,-862.35,0.0002469,3]
[381558302,1756282954204,-1768.75,0.0002469,10]
[381558303,1756282954541,-178.0982606,0.00024699,2]
[381558304,1756282954717,-12.67535229,0.00024699,2]
[381558305,1756282954775,-500.0,0.00024699,2]
[381558306,1756282954830,-500.0,0.00024699,2]
[381558307,1756282954885,-500.0,0.00024699,2]
[381558308,1756282954946,-500.0,0.00024699,2]
[381558309,1756282955005,-500.0,0.00024699,2]
[381558310,1756282955077,-500.0,0.00024699,2]
[381558311,1756282955133,-500.0,0.00024699,2]
[381558312,1756282955188,-500.0,0.00024699,2]
[381558313,1756282955246,-500.0,0.00024699,2]
[381558314,1756282955303,-325.89639561,0.00024699,2]
[381558318,1756282956780,-322.8665042,0.000247,2]
[381558319,1756282957031,-175.81806676,0.00024067,2]
[381558320,1756282957041,-9824.19193324,0.000247,2]
[381558321,1756282957301,-500.0,0.00024672,2]
[381558322,1756282957317,-500.0,0.00024672,2]
[381558323,1756282957327,-9000.01,0.000247,2]
[381558441,1756283104615,2802.65385331,0.000199,2]
[381558443,1756283104825,2802.65385317,0.00021627,2]
[381558525,1756283272785,452.009717,0.00022653,2]
[381558526,1756283273139,193.535017,0.00022827,2]
[381558527,1756283273558,419.45481767,0.00022828,2]
[381558529,1756283276838,7359.29539098,0.00018,2]
[381558534,1756283293611,2630.33769103,0.000199,2]
[381558535,1756283293720,2630.337691,0.00021627,2]
[381558538,1756283300249,4739.33461797,0.00018,2]
[381558539,1756283300271,7220.66538203,0.00018,2]
[381558556,1756283317432,6849.496636,0.00017,2]
[381558558,1756283319138,3150.513364,0.0002,20]
[381558559,1756283319167,486.86861106,0.0002,20]
[381558567,1756283321445,168.01383662,0.00022,10]
[381558569,1756283323382,2519.73663771,0.00022,10]
[381558574,1756283324300,10000.01,0.0002,2]
[381558575,1756283324321,9880.43851872,0.0002,2]
[381558578,1756283327309,119.57148128,0.00023,2]
[381558579,1756283327331,2826.6891136,0.00023,2]
[381558581,1756283328186,1524.90848273,0.00023,2]
[381558583,1756283329208,5648.41240367,0.00017,2]
[381558584,1756283329231,1351.58759633,0.00017,2]
[381558602,1756283359369,729.11756174,0.00022358,2]
[381558612,1756283376472,355.9289995,0.00022952,2]
[381558619,1756283381397,364.6342757,0.00022952,2]
[381558685,1756283432202,-251.34665935,0.00023327,2]
[381558838,1756283439325,722.84958433,0.00022358,2]
[381558996,1756283441312,2888.50693899,0.00022358,2]
[381559212,1756283443187,-100.29452162,0.00023327,2]
[381559214,1756283443197,-680.0000005,0.00023348,2]
[381559217,1756283443206,-2630.337691,0.00023353,2]
[381559219,1756283443216,-2000.0,0.000234,2]
[381559221,1756283443225,-181.12497588,0.00023433,74]
[381559223,1756283443234,-2033.73842492,0.00023446,2]
[381559430,1756283446326,-3145.26157508,0.00023446,2]
[381559433,1756283446338,-300.0,0.00023464,2]
[381559435,1756283446351,-432.0,0.00023464,2]
[381559437,1756283446363,-184.83564356,0.00023464,2]
[381559440,1756283446375,-198.45157474,0.00023464,2]
[381559442,1756283446388,-3073.05739507,0.00023465,2]
[381559444,1756283446401,-6914.3791389,0.00023465,2]
[381559446,1756283446413,-38131.85609842,0.00023533,2]
[381559449,1756283446426,-1200.0,0.00023533,2]
[381559451,1756283446441,-768.26434877,0.00023534,2]
[381559453,1756283446458,-152.00856054,0.000237,2]
[381559456,1756283446471,-3159.39312597,0.000237,14]
[381559458,1756283446484,-1473.96,0.0002398,10]
[381559460,1756283446498,-500.0,0.00023989,2]
[381559463,1756283446511,-500.0,0.00023989,2]
[381559465,1756283446526,-500.0,0.00023989,2]
[381559467,1756283446540,-500.0,0.00023989,2]
[381559470,1756283446553,-500.0,0.00023989,2]
[381559472,1756283446567,-500.0,0.00023989,2]
[381559474,1756283446579,-423.97636643,0.00023989,2]
[381559477,1756283446591,-500.0,0.00023989,2]
[381559479,1756283446605,-500.0,0.00023989,2]
[381559481,1756283446618,-500.0,0.00023989,2]
[381559483,1756283446631,-500.0,0.00023989,2]
[381559486,1756283446644,-500.0,0.00023989,2]
[381559488,1756283446656,-500.0,0.00023989,2]
[381559490,1756283446668,-500.0,0.00023989,2]
[381559493,1756283446680,-500.0,0.00023989,2]
[381559495,1756283446692,-59428.45556993,0.0002399,2]
[381559887,1756283471641,2367.3039219,0.000199,2]
[381559888,1756283471769,2367.3039219,0.00021627,2]
[381559894,1756283486743,409.526971,0.00022833,2]
[381559905,1756283505221,2038.83462316,0.00031446,60]
[381559925,1756283549931,760.005147,0.00013699,2]
[381559926,1756283550144,760.005147,0.00020187,2]
[381559932,1756283556109,672.489824,0.00022848,2]
[381559955,1756283642399,162.06972335,0.00022493,5]
[381559956,1756283647349,2224.06929943,0.000199,2]
[381559957,1756283647526,2224.06929928,0.00021627,2]
[381559997,1756283832179,2083.11334846,0.000199,2]
[381559998,1756283832299,2083.11334828,0.00021627,2]
[381560003,1756283843994,-300.0,0.00023325,2]
[381560004,1756283844024,-1200.0,0.00023325,2]
[381560005,1756283844828,10000.0,0.00022685,2]
[381560009,1756283854137,-49.47797526,0.00023326,2]
[381560011,1756283854454,-10000.01,0.00023326,2]
[381560012,1756283854638,-294.67230514,0.00023326,2]
[381560013,1756283854667,-500.0,0.0002335,2]
[381560014,1756283854695,-347.63345757,0.0002335,2]
[381560015,1756283854722,-500.0,0.0002335,2]
[381560016,1756283854752,-500.0,0.0002335,2]
[381560017,1756283854780,-345.72578574,0.0002335,2]
[381560018,1756283854809,-500.0,0.0002335,2]
[381560019,1756283854843,-500.0,0.0002335,2]
[381560020,1756283854875,-500.0,0.0002335,2]
[381560021,1756283854913,-407.50057971,0.0002335,2]
[381560022,1756283854970,-500.0,0.0002335,2]
[381560023,1756283855289,-500.0,0.0002335,2]
[381560024,1756283855334,-500.0,0.0002335,2]
[381560025,1756283855379,-500.0,0.0002335,2]
[381560026,1756283855420,-500.0,0.0002335,2]
[381560027,1756283855461,-500.0,0.0002335,2]
[381560028,1756283855502,-500.0,0.0002335,2]
[381560029,1756283855541,-500.0,0.0002335,2]
[381560030,1756283855583,-500.0,0.0002335,2]
[381560031,1756283855624,-500.0,0.0002335,2]
[381560032,1756283855666,-500.0,0.0002335,2]
[381560033,1756283855816,-500.0,0.0002335,2]
[381560034,1756283855857,-500.0,0.0002335,2]
[381560035,1756283855897,-500.0,0.0002335,2]
[381560036,1756283855937,-309.78923619,0.0002335,2]
[381560037,1756283855977,-500.0,0.0002335,2]
[381560038,1756283856016,-500.0,0.0002335,2]
[381560039,1756283856057,-500.0,0.0002335,2]
[381560040,1756283856096,-500.0,0.0002335,2]
[381560041,1756283856135,-500.0,0.0002335,2]
[381560042,1756283856226,-2083.11334828,0.00023353,2]
[381560043,1756283856264,-2885.66548593,0.00023365,2]
[381560044,1756283856390,-62.45233158,0.00023365,2]
[381560045,1756283856428,-2599.77376141,0.00023465,2]
[381560046,1756283856464,-650.59403439,0.00023465,2]
[381560047,1756283856492,-581.05161761,0.00023465,2]
[381560048,1756283856521,-500.0,0.00023629,2]
[381560049,1756283856550,-483.14785472,0.0002372,2]
[381560050,1756283857417,-500.0,0.0002372,2]
[381560051,1756283857446,-842.48500187,0.00023771,2]
[381560052,1756283857473,-500.0,0.00023791,20]
[381560053,1756283857504,-300.0,0.00023791,20]
[381560054,1756283857535,-300.0,0.00023791,20]
[381560055,1756283857567,-300.0,0.00023791,20]
[381560056,1756283857598,-300.0,0.00023791,20]
[381560057,1756283857631,-300.0,0.00023791,20]
[381560058,1756283857673,-300.0,0.00023791,20]
[381560059,1756283857704,-300.0,0.00023791,20]
[381560060,1756283857736,-300.0,0.00023791,20]
[381560061,1756283857768,-300.0,0.00023791,20]
[381560062,1756283857801,-300.0,0.00023791,20]
[381560063,1756283857833,-15.03999626,0.00023791,20]
[381560064,1756283858090,-284.96000374,0.00023791,20]
[381560065,1756283858122,-300.0,0.00023791,20]
[381560066,1756283858151,-300.0,0.00023791,20]
[381560067,1756283858182,-300.0,0.00023791,20]
[381560068,1756283858210,-300.0,0.00023791,20]
[381560069,1756283858239,-600.0,0.00023817,20]
[381560070,1756283858265,-2741.42472069,0.0002385,2]
[381560071,1756283858450,-347.24055114,0.0002385,2]
[381560072,1756283858480,-500.0,0.00023988,2]
[381560073,1756283858507,-243.64235857,0.00023988,2]
[381560074,1756283858540,-500.0,0.00023988,2]
[381560075,1756283858571,-500.0,0.00023988,2]
[381560076,1756283858600,-500.0,0.00023988,2]
[381560077,1756283858630,-500.0,0.00023988,2]
[381560078,1756283858661,-500.0,0.00023988,2]
[381560079,1756283858690,-500.0,0.00023988,2]
[381560080,1756283858719,-500.0,0.00023988,2]
[381560081,1756283858750,-318.24418058,0.00023988,2]
[381560083,1756283860523,-181.75581942,0.00023988,2]
[381560084,1756283860533,-90.88290971,0.00023988,2]
[381560085,1756283860607,-409.11709029,0.00023988,2]
[381560086,1756283860617,-90.88290971,0.00023988,2]
[381560087,1756283860636,-409.11709029,0.00023988,2]
[381560088,1756283860647,-90.88290971,0.00023988,2]
[381560089,1756283860666,-409.11709029,0.00023988,2]
[381560090,1756283860676,-90.88290971,0.00023988,2]
[381560091,1756283860694,-409.11709029,0.00023988,2]
[381560092,1756283860705,-90.88290971,0.00023988,2]
[381560093,1756283860723,-409.11709029,0.00023988,2]
[381560094,1756283860736,-90.88290971,0.00023988,2]
[381560105,1756283884130,-1198.15,0.00023157,10]
[381560106,1756283884162,-300.0,0.00023166,2]
[381560107,1756283884222,-7003.71,0.00023167,2]
[381560108,1756283884308,-10000.01,0.00023167,2]
[381560109,1756283884504,-10000.01,0.00023167,2]
[381560110,1756283884673,-10000.01,0.00023167,2]
[381560111,1756283884893,-10000.01,0.00023167,2]
[381560113,1756283885064,-10000.01,0.00023167,2]
[381560114,1756283885240,-10000.01,0.00023167,2]
[381560115,1756283885448,-10000.01,0.00023167,2]
[381560116,1756283885612,-10000.01,0.00023167,2]
[381560117,1756283885879,-10000.01,0.00023167,2]
[381560122,1756283920486,3069.66068876,0.00023,7]
[381560129,1756283955896,10000.01,0.00022467,2]
[381560130,1756283955918,10000.01,0.00022467,2]
[381560131,1756283955941,295.4860396,0.00022467,2]
[381560142,1756284007684,3030.22035511,0.000199,2]
[381560143,1756284007837,3030.22035508,0.00021627,2]
[381560147,1756284027457,1437.61238891,0.00023,2]
[381560166,1756284139719,666.0,0.00022165,2]
[381560168,1756284174672,-169.80466491,0.00023066,73]
[381560169,1756284174700,-2579.60309026,0.00023067,2]
[381560170,1756284174730,-1200.0,0.00023164,2]
[381560171,1756284174758,-300.0,0.00023165,2]
[381560172,1756284174785,-300.0,0.00023165,2]
[381560173,1756284174815,-300.0,0.00023165,2]
[381560174,1756284174844,-1.19448966,0.00023165,2]
[381560175,1756284175042,-298.80551034,0.00023165,2]
[381560176,1756284175072,-188.0,0.00023165,2]
[381560177,1756284175102,-500.0,0.00023165,2]
[381560178,1756284175130,-261.79613596,0.00023165,2]
[381560179,1756284175160,-500.0,0.00023165,2]
[381560180,1756284175190,-500.0,0.00023165,2]
[381560181,1756284175219,-500.0,0.00023165,2]
[381560182,1756284175247,-500.0,0.00023165,2]
[381560183,1756284175276,-500.0,0.00023165,2]
[381560184,1756284175305,-500.0,0.00023165,2]
[381560185,1756284175334,-427.42424835,0.00023165,2]
[381560186,1756284175361,-147.9582107,0.00023165,2]
[381560187,1756284175596,-352.0417893,0.00023165,2]
[381560188,1756284175626,-500.0,0.00023165,2]
[381560189,1756284175655,-500.0,0.00023165,2]
[381560190,1756284175684,-500.0,0.00023165,2]
[381560191,1756284175712,-500.0,0.00023165,2]
[381560192,1756284175743,-500.0,0.00023165,2]
[381560193,1756284175780,-500.0,0.00023165,2]
[381560194,1756284175808,-156.3889533,0.00023165,2]
[381560195,1756284175837,-261.45949185,0.00023165,2]
[381560196,1756284175867,-500.0,0.00023165,2]
[381560197,1756284175901,-500.0,0.00023165,2]
[381560198,1756284176126,-500.0,0.00023165,2]
[381560199,1756284176158,-156.12722066,0.00023165,2]
[381560200,1756284176187,-500.0,0.00023165,2]
[381560201,1756284176221,-500.0,0.00023165,2]
[381560202,1756284176251,-500.0,0.00023165,2]
[381560203,1756284176282,-500.0,0.00023165,2]
[381560204,1756284176312,-500.0,0.00023165,2]
[381560205,1756284176340,-500.0,0.00023165,2]
[381560206,1756284176372,-500.0,0.00023165,2]
[381560207,1756284176402,-500.0,0.00023165,2]
[381560208,1756284176431,-187.75555868,0.00023165,2]
[381560209,1756284176562,-312.24444132,0.00023165,2]
[381560210,1756284176590,-500.0,0.00023165,2]
[381560211,1756284176618,-500.0,0.00023165,2]
[381560212,1756284176647,-500.0,0.00023165,2]
[381560213,1756284176681,-204.61039215,0.00023165,2]
[381560214,1756284176709,-2423.69499488,0.00023166,2]
[381560215,1756284178425,-1013.0417879,0.00023166,2]
[381560216,1756284178450,-10000.01,0.00023166,2]
[381560217,1756284178479,-10000.01,0.00023166,2]
[381560218,1756284182791,2997.84370485,0.000199,2]
[381560219,1756284182824,2997.84370456,0.00021627,2]
[381560221,1756284198151,5000.0,0.00023,2]
[381560222,1756284207274,5000.0,0.00023,2]
[381560223,1756284216772,5000.0,0.00023,2]
[381560224,1756284225068,817.0153663,0.00022166,2]
[381560225,1756284232876,5000.0,0.00023,2]
[381560226,1756284236312,231.59875354,0.00022967,2]
[381560227,1756284248512,5000.0,0.00023,2]
[381560228,1756284265102,5000.0,0.00023,2]
[381560229,1756284280712,5000.0,0.00023,2]
[381560230,1756284296463,5000.0,0.00023,2]
[381560231,1756284312133,5000.0,0.00023,2]